[Event "*** Titled Tuesday Blitz"]
[Site "Chess.com"]
[Date "2021.02.16"]
[Round "11"]
[White "ikhasu"]
[Black "zimmm36"]
[Result "1-0"]
[WhiteElo "2403"]
[BlackElo "2269"]
[TimeControl "180+1"]
[EndTime "12:11:03 PST"]
[Termination "ikhasu won by checkmate"]

1. d4 {[%clk 0:03:00.9]} 1... e5 {[%clk 0:02:58.6]} 2. dxe5 {[%clk 0:02:59.7]}
2... Qe7 {[%clk 0:02:58.7]} 3. Nf3 {[%clk 0:02:58.5]} 3... Nc6 {[%clk 0:02:59]}
4. Nc3 {[%clk 0:02:45.5]} 4... f6 {[%clk 0:02:56]} 5. exf6 {[%clk 0:02:44.4]}
5... Nxf6 {[%clk 0:02:56.9]} 6. Bg5 {[%clk 0:02:42.6]} 6... Qb4 {[%clk
0:02:44.9]} 7. Rb1 {[%clk 0:02:37]} 7... Ne4 {[%clk 0:02:40.9]} 8. Bd2 {[%clk
0:02:34.3]} 8... Nxd2 {[%clk 0:02:29]} 9. Qxd2 {[%clk 0:02:34]} 9... Be7 {[%clk
0:02:26.1]} 10. e3 {[%clk 0:02:28.4]} 10... O-O {[%clk 0:02:24.2]} 11. Bd3
{[%clk 0:02:26.2]} 11... d6 {[%clk 0:02:17.5]} 12. Nd5 {[%clk 0:02:23]} 12...
Qxd2+ {[%clk 0:02:15.9]} 13. Nxd2 {[%clk 0:02:22.6]} 13... Bd8 {[%clk
0:02:16.8]} 14. O-O {[%clk 0:02:20.5]} 14... Ne5 {[%clk 0:02:14]} 15. Nc4 {[%clk
0:02:17.2]} 15... Nxd3 {[%clk 0:02:11.6]} 16. cxd3 {[%clk 0:02:16.6]} 16... Be6
{[%clk 0:02:12]} 17. Nc3 {[%clk 0:02:14.1]} 17... Be7 {[%clk 0:02:07.4]} 18.
Rbc1 {[%clk 0:02:12.8]} 18... c6 {[%clk 0:01:56.8]} 19. Ne2 {[%clk 0:02:07.3]}
19... Rf5 {[%clk 0:01:48.9]} 20. Nd4 {[%clk 0:02:05.5]} 20... Rf6 {[%clk
0:01:42.4]} 21. Nxe6 {[%clk 0:02:03.6]} 21... Rxe6 {[%clk 0:01:43.3]} 22. d4
{[%clk 0:02:03.1]} 22... Rf8 {[%clk 0:01:42.4]} 23. Na5 {[%clk 0:02:02.8]} 23...
Rb8 {[%clk 0:01:33.1]} 24. Rfd1 {[%clk 0:02:02.1]} 24... Bd8 {[%clk 0:01:08.1]}
25. Nb3 {[%clk 0:01:47.9]} 25... d5 {[%clk 0:01:06.6]} 26. Nc5 {[%clk
0:01:47.2]} 26... Re7 {[%clk 0:01:06.6]} 27. Nd3 {[%clk 0:01:45.4]} 27... Bc7
{[%clk 0:01:05.1]} 28. b4 {[%clk 0:01:42.9]} 28... Bd6 {[%clk 0:01:03.4]} 29. a4
{[%clk 0:01:41.5]} 29... a6 {[%clk 0:01:01.5]} 30. Rb1 {[%clk 0:01:39.1]} 30...
Rf7 {[%clk 0:00:59.2]} 31. Rdc1 {[%clk 0:01:37.8]} 31... Kf8 {[%clk 0:00:55.9]}
32. b5 {[%clk 0:01:37.5]} 32... cxb5 {[%clk 0:00:53]} 33. axb5 {[%clk 0:01:37]}
33... a5 {[%clk 0:00:53.9]} 34. b6 {[%clk 0:01:35.7]} 34... a4 {[%clk
0:00:51.4]} 35. Rb5 {[%clk 0:01:34.9]} 35... Rf5 {[%clk 0:00:32.9]} 36. e4
{[%clk 0:01:28.2]} 36... Rf7 {[%clk 0:00:16.1]} 37. Rxd5 {[%clk 0:01:25.3]}
37... Be7 {[%clk 0:00:14]} 38. Ne5 {[%clk 0:01:24.8]} 38... Rf4 {[%clk
0:00:12.7]} 39. Nd7+ {[%clk 0:01:24.4]} 39... Kf7 {[%clk 0:00:12.8]} 40. Nxb8
{[%clk 0:01:24.1]} 40... Rxe4 {[%clk 0:00:13.7]} 41. Nd7 {[%clk 0:01:23.3]}
41... a3 {[%clk 0:00:10.6]} 42. Nc5 {[%clk 0:01:20.6]} 42... Re2 {[%clk
0:00:10]} 43. Ra1 {[%clk 0:01:19]} 43... a2 {[%clk 0:00:08.5]} 44. Kf1 {[%clk
0:01:19.1]} 44... Rb2 {[%clk 0:00:08.3]} 45. Re5 {[%clk 0:01:15]} 45... Bf6
{[%clk 0:00:06.6]} 46. Nd3 {[%clk 0:00:58.3]} 46... Rb1+ {[%clk 0:00:04.2]} 47.
Re1 {[%clk 0:00:56.9]} 47... Rb3 {[%clk 0:00:04.6]} 48. Nc1 {[%clk 0:00:52.8]}
48... Rxb6 {[%clk 0:00:02.3]} 49. Nxa2 {[%clk 0:00:52.4]} 49... Bxd4 {[%clk
0:00:03.2]} 50. Rad1 {[%clk 0:00:51.5]} 50... Bf6 {[%clk 0:00:03.1]} 51. Rd7+
{[%clk 0:00:50.9]} 51... Kg6 {[%clk 0:00:02.9]} 52. Nc1 {[%clk 0:00:51.4]} 52...
Rb2 {[%clk 0:00:02.1]} 53. Nd3 {[%clk 0:00:51.3]} 53... Rb3 {[%clk 0:00:02.2]}
54. Nf4+ {[%clk 0:00:51.2]} 54... Kf5 {[%clk 0:00:02]} 55. g3 {[%clk 0:00:51.3]}
55... Kg4 {[%clk 0:00:01.9]} 56. Kg2 {[%clk 0:00:51.1]} 56... g5 {[%clk
0:00:01.2]} 57. h3+ {[%clk 0:00:51]} 57... Kf5 {[%clk 0:00:01.4]} 58. Rd5+
{[%clk 0:00:51.2]} 58... Be5 {[%clk 0:00:01.3]} 59. Rdxe5+ {[%clk 0:00:51.2]}
59... Kf6 {[%clk 0:00:02.2]} 60. Re6+ {[%clk 0:00:51.3]} 60... Kf7 {[%clk
0:00:01.8]} 61. Re7+ {[%clk 0:00:51.2]} 61... Kf8 {[%clk 0:00:02.1]} 62. Re8+
{[%clk 0:00:50.9]} 62... Kf7 {[%clk 0:00:02.3]} 63. R1e7+ {[%clk 0:00:51.3]}
63... Kf6 {[%clk 0:00:03.2]} 64. Nd5+ {[%clk 0:00:51.1]} 64... Kg6 {[%clk
0:00:03.1]} 65. Rg8+ {[%clk 0:00:50]} 65... Kf5 {[%clk 0:00:03.3]} 66. g4#
{[%clk 0:00:49.6]} 1-0

[Event "*** Titled Tuesday Blitz"]
[Site "Chess.com"]
[Date "2021.02.16"]
[Round "11"]
[White "Faqade"]
[Black "TimofeevAr"]
[Result "1-0"]
[WhiteElo "2721"]
[BlackElo "2869"]
[TimeControl "180+1"]
[EndTime "12:11:06 PST"]
[Termination "Faqade won by resignation"]

1. e4 {[%clk 0:03:00.9]} 1... d5 {[%clk 0:02:59.5]} 2. exd5 {[%clk 0:02:59.3]}
2... Nf6 {[%clk 0:02:59.7]} 3. Bb5+ {[%clk 0:02:58.6]} 3... Bd7 {[%clk
0:02:59.6]} 4. Be2 {[%clk 0:02:58.9]} 4... Nxd5 {[%clk 0:02:59.1]} 5. d4 {[%clk
0:02:59.4]} 5... g6 {[%clk 0:02:56.5]} 6. Nf3 {[%clk 0:02:59.8]} 6... Bg7 {[%clk
0:02:56.9]} 7. O-O {[%clk 0:02:59.2]} 7... O-O {[%clk 0:02:56.9]} 8. c4 {[%clk
0:02:59.8]} 8... Nf6 {[%clk 0:02:57.1]} 9. Nc3 {[%clk 0:02:59.8]} 9... Bg4
{[%clk 0:02:51.2]} 10. h3 {[%clk 0:02:59.5]} 10... Bxf3 {[%clk 0:02:50.9]} 11.
Bxf3 {[%clk 0:03:00.4]} 11... c6 {[%clk 0:02:51.5]} 12. d5 {[%clk 0:02:55.3]}
12... cxd5 {[%clk 0:02:51.3]} 13. Nxd5 {[%clk 0:02:56.2]} 13... Nxd5 {[%clk
0:02:49.6]} 14. Qxd5 {[%clk 0:02:51.2]} 14... Nc6 {[%clk 0:02:47.9]} 15. Bg5
{[%clk 0:02:47.7]} 15... Bxb2 {[%clk 0:02:25.3]} 16. Rab1 {[%clk 0:02:47]} 16...
Bf6 {[%clk 0:02:25.4]} 17. Bxf6 {[%clk 0:02:46.2]} 17... exf6 {[%clk 0:02:25.5]}
18. Rxb7 {[%clk 0:02:46.8]} 18... Nd4 {[%clk 0:02:16.9]} 19. Rd1 {[%clk
0:02:35.8]} 19... Nxf3+ {[%clk 0:02:11]} 20. Qxf3 {[%clk 0:02:36.7]} 20... Qc8
{[%clk 0:02:10.9]} 21. Rdd7 {[%clk 0:02:18.3]} 21... Qxc4 {[%clk 0:02:08.6]} 22.
Rxa7 {[%clk 0:02:18.3]} 22... Rxa7 {[%clk 0:02:04.3]} 23. Rxa7 {[%clk
0:02:19.2]} 23... f5 {[%clk 0:02:04.3]} 24. Ra8 {[%clk 0:02:12.5]} 24... Qc1+
{[%clk 0:02:03.9]} 25. Kh2 {[%clk 0:02:11.1]} 25... Qc7+ {[%clk 0:02:04.4]} 26.
g3 {[%clk 0:02:10.7]} 26... Rxa8 {[%clk 0:01:57.8]} 27. Qxa8+ {[%clk 0:02:11.6]}
27... Kg7 {[%clk 0:01:58.3]} 28. Kg2 {[%clk 0:02:09.3]} 28... h5 {[%clk
0:01:55.5]} 29. Qd5 {[%clk 0:02:02.9]} 29... Qa7 {[%clk 0:01:33.2]} 30. Qc4
{[%clk 0:01:45.5]} 30... Qb7+ {[%clk 0:01:30.4]} 31. Kh2 {[%clk 0:01:44.9]}
31... Qb2 {[%clk 0:01:28.2]} 32. Kg2 {[%clk 0:01:41.2]} 32... Qb7+ {[%clk
0:01:28]} 33. Kf1 {[%clk 0:01:22.1]} 33... Qb1+ {[%clk 0:01:26.4]} 34. Ke2
{[%clk 0:01:21.9]} 34... Qb2+ {[%clk 0:01:26.3]} 35. Ke3 {[%clk 0:01:20.7]}
35... Qe5+ {[%clk 0:01:16]} 36. Kf3 {[%clk 0:01:19.2]} 36... g5 {[%clk
0:01:14.8]} 37. a4 {[%clk 0:01:16.2]} 37... Qe1 {[%clk 0:00:45.1]} 38. Qd4+
{[%clk 0:01:02.6]} 38... Kg6 {[%clk 0:00:42.9]} 39. Kg2 {[%clk 0:01:01.2]} 39...
Qa5 {[%clk 0:00:36.2]} 40. Qd6+ {[%clk 0:00:55.9]} 40... Kg7 {[%clk 0:00:31.7]}
41. Qc6 {[%clk 0:00:54.1]} 41... Qe5 {[%clk 0:00:27.1]} 42. Qa8 {[%clk
0:00:33.5]} 42... h4 {[%clk 0:00:23.2]} 43. gxh4 {[%clk 0:00:33.3]} 43... gxh4
{[%clk 0:00:22.3]} 44. a5 {[%clk 0:00:32.9]} 44... Kh7 {[%clk 0:00:20.5]} 45. a6
{[%clk 0:00:19.5]} 45... Qg7+ {[%clk 0:00:20.6]} 46. Kf3 {[%clk 0:00:19.6]}
46... Qc3+ {[%clk 0:00:20.4]} 47. Kf4 {[%clk 0:00:18.3]} 47... Qxh3 {[%clk
0:00:16.4]} 48. Qf3 {[%clk 0:00:13.2]} 48... Qh2+ {[%clk 0:00:16]} 49. Kxf5
{[%clk 0:00:10.6]} 49... h3 {[%clk 0:00:14.3]} 50. a7 {[%clk 0:00:10.1]} 50...
Qg2 {[%clk 0:00:13.3]} 51. a8=Q {[%clk 0:00:09]} 51... Qg6+ {[%clk 0:00:13.1]}
52. Ke5 {[%clk 0:00:08.9]} 52... Qe6+ {[%clk 0:00:12.9]} 53. Kd4 {[%clk
0:00:09.5]} 53... h2 {[%clk 0:00:13.1]} 54. Qae4+ {[%clk 0:00:07.6]} 54... Qxe4+
{[%clk 0:00:12.2]} 55. Qxe4+ {[%clk 0:00:08.5]} 1-0

[Event "*** Titled Tuesday Blitz"]
[Site "Chess.com"]
[Date "2021.02.16"]
[Round "11"]
[White "Sergey85Rodchenkov"]
[Black "Goryachkina"]
[Result "0-1"]
[WhiteElo "2509"]
[BlackElo "2654"]
[TimeControl "180+1"]
[EndTime "12:11:08 PST"]
[Termination "Goryachkina won by resignation"]

1. e4 {[%clk 0:02:54.4]} 1... c5 {[%clk 0:02:59.6]} 2. Nf3 {[%clk 0:02:53.9]}
2... Nc6 {[%clk 0:02:59.9]} 3. d4 {[%clk 0:02:53.5]} 3... cxd4 {[%clk
0:02:59.4]} 4. Nxd4 {[%clk 0:02:54]} 4... e5 {[%clk 0:02:59.7]} 5. Nb3 {[%clk
0:02:53.3]} 5... Nf6 {[%clk 0:02:57.1]} 6. Nc3 {[%clk 0:02:52.7]} 6... Bb4
{[%clk 0:02:55.4]} 7. Bc4 {[%clk 0:02:52.5]} 7... O-O {[%clk 0:02:49.9]} 8. O-O
{[%clk 0:02:51.5]} 8... Bxc3 {[%clk 0:02:17.8]} 9. bxc3 {[%clk 0:02:52.4]} 9...
d6 {[%clk 0:02:13.4]} 10. Ba3 {[%clk 0:02:50.6]} 10... Nxe4 {[%clk 0:01:57.7]}
11. Qd3 {[%clk 0:02:49.5]} 11... Bf5 {[%clk 0:01:35.3]} 12. Rae1 {[%clk
0:02:48.1]} 12... Rc8 {[%clk 0:01:09.2]} 13. Rxe4 {[%clk 0:02:37.5]} 13... Ne7
{[%clk 0:00:56.2]} 14. Bd5 {[%clk 0:02:06.4]} 14... Nxd5 {[%clk 0:00:49.3]} 15.
Qxd5 {[%clk 0:02:06.5]} 15... Bxe4 {[%clk 0:00:49.2]} 16. Qxe4 {[%clk
0:02:06.7]} 16... Rxc3 {[%clk 0:00:49.2]} 17. Qxb7 {[%clk 0:02:06.1]} 17... Rxc2
{[%clk 0:00:48.1]} 18. Bb4 {[%clk 0:01:55.5]} 18... Rxa2 {[%clk 0:00:46]} 19.
Na5 {[%clk 0:01:48.7]} 19... Qc8 {[%clk 0:00:34.4]} 20. Qxa7 {[%clk 0:01:41.3]}
20... h6 {[%clk 0:00:25.8]} 21. Qe3 {[%clk 0:01:26.8]} 21... Qe6 {[%clk
0:00:19.8]} 22. h3 {[%clk 0:01:02.6]} 22... Rc8 {[%clk 0:00:18.6]} 23. Nb7
{[%clk 0:00:47.8]} 23... d5 {[%clk 0:00:17]} 24. Nc5 {[%clk 0:00:44.1]} 24...
Qb6 {[%clk 0:00:16.9]} 25. Nd3 {[%clk 0:00:27.7]} 25... Qxe3 {[%clk 0:00:15.4]}
26. fxe3 {[%clk 0:00:27.8]} 26... e4 {[%clk 0:00:15.8]} 27. Nf4 {[%clk
0:00:27.3]} 27... Rcc2 {[%clk 0:00:14.8]} 28. Rd1 {[%clk 0:00:15.7]} 28... g5
{[%clk 0:00:14.4]} 29. Nxd5 {[%clk 0:00:15.6]} 29... Rxg2+ {[%clk 0:00:14.6]}
30. Kf1 {[%clk 0:00:16.2]} 30... Raf2+ {[%clk 0:00:14.1]} 31. Ke1 {[%clk
0:00:16.3]} 31... Rb2 {[%clk 0:00:12.9]} 32. Kf1 {[%clk 0:00:16.2]} 32... Rgf2+
{[%clk 0:00:12.8]} 33. Ke1 {[%clk 0:00:16.2]} 33... Rh2 {[%clk 0:00:13]} 34. Bd2
{[%clk 0:00:15.8]} 34... Kh7 {[%clk 0:00:11.3]} 35. Nf6+ {[%clk 0:00:15.7]}
35... Kg6 {[%clk 0:00:11.7]} 36. Nxe4 {[%clk 0:00:16.5]} 36... Rxh3 {[%clk
0:00:11.7]} 37. Nf2 {[%clk 0:00:16.7]} 37... Rf3 {[%clk 0:00:11.1]} 38. Ke2
{[%clk 0:00:16.6]} 38... Rf5 {[%clk 0:00:11.3]} 39. e4 {[%clk 0:00:16.7]} 39...
Rc5 {[%clk 0:00:09.9]} 40. Ke3 {[%clk 0:00:16]} 40... Rcb5 {[%clk 0:00:10.1]}
41. Rc1 {[%clk 0:00:15.8]} 41... R5b3+ {[%clk 0:00:09.9]} 42. Rc3 {[%clk
0:00:16.1]} 42... Rxc3+ {[%clk 0:00:09.8]} 43. Bxc3 {[%clk 0:00:16.5]} 43... Rb3
{[%clk 0:00:10.3]} 44. Kd4 {[%clk 0:00:16.4]} 44... h5 {[%clk 0:00:10.7]} 45.
Kc4 {[%clk 0:00:15.9]} 45... Rb7 {[%clk 0:00:10.9]} 46. e5 {[%clk 0:00:13.9]}
46... h4 {[%clk 0:00:10.7]} 47. Ng4 {[%clk 0:00:13.6]} 47... h3 {[%clk
0:00:10.7]} 48. Kd3 {[%clk 0:00:12.5]} 48... Kh5 {[%clk 0:00:09.7]} 49. Nf6+
{[%clk 0:00:12.5]} 49... Kg6 {[%clk 0:00:10.1]} 50. Ng4 {[%clk 0:00:12.1]} 50...
Rb3 {[%clk 0:00:09.5]} 51. Kc2 {[%clk 0:00:11.4]} 51... Ra3 {[%clk 0:00:10]} 52.
Be1 {[%clk 0:00:08.4]} 52... h2 {[%clk 0:00:08.6]} 53. Nxh2 {[%clk 0:00:06.6]}
53... Ra2+ {[%clk 0:00:09.2]} 54. Kd3 {[%clk 0:00:06.7]} 54... Rxh2 {[%clk
0:00:10.1]} 0-1

[Event "*** Titled Tuesday Blitz"]
[Site "Chess.com"]
[Date "2021.02.16"]
[Round "11"]
[White "FMJoseHerrera"]
[Black "XDPS"]
[Result "0-1"]
[WhiteElo "2597"]
[BlackElo "2735"]
[TimeControl "180+1"]
[EndTime "12:11:10 PST"]
[Termination "XDPS won on time"]

1. Nf3 {[%clk 0:03:00.9]} 1... d5 {[%clk 0:02:55.6]} 2. g3 {[%clk 0:03:01.2]}
2... Bg4 {[%clk 0:02:54.8]} 3. Bg2 {[%clk 0:03:01.5]} 3... e6 {[%clk 0:02:55.2]}
4. O-O {[%clk 0:02:59.9]} 4... Nf6 {[%clk 0:02:55.6]} 5. d3 {[%clk 0:02:59.8]}
5... c5 {[%clk 0:02:54.7]} 6. c3 {[%clk 0:03:00.2]} 6... Nc6 {[%clk 0:02:54.8]}
7. Qb3 {[%clk 0:03:00.1]} 7... Qd7 {[%clk 0:02:34]} 8. c4 {[%clk 0:02:58.9]}
8... Bxf3 {[%clk 0:02:31]} 9. exf3 {[%clk 0:02:57.8]} 9... Be7 {[%clk
0:02:28.3]} 10. cxd5 {[%clk 0:02:57]} 10... Nxd5 {[%clk 0:02:25.6]} 11. f4
{[%clk 0:02:54.5]} 11... Nd4 {[%clk 0:02:25.7]} 12. Qd1 {[%clk 0:02:53.8]} 12...
O-O {[%clk 0:02:25.5]} 13. Nc3 {[%clk 0:02:53.5]} 13... Rad8 {[%clk 0:02:20.7]}
14. Be3 {[%clk 0:02:52.2]} 14... Nf5 {[%clk 0:02:12.3]} 15. Nxd5 {[%clk
0:02:40.9]} 15... exd5 {[%clk 0:02:12.3]} 16. d4 {[%clk 0:02:41.3]} 16... Nxe3
{[%clk 0:01:42.5]} 17. fxe3 {[%clk 0:02:35.3]} 17... c4 {[%clk 0:01:42.8]} 18.
Qc2 {[%clk 0:02:17.9]} 18... b5 {[%clk 0:01:41.1]} 19. Rad1 {[%clk 0:02:15.8]}
19... Rfe8 {[%clk 0:01:41]} 20. e4 {[%clk 0:01:58.3]} 20... dxe4 {[%clk
0:01:41.2]} 21. Bxe4 {[%clk 0:01:59.2]} 21... g6 {[%clk 0:01:41.4]} 22. f5
{[%clk 0:01:53.8]} 22... Qd6 {[%clk 0:01:39.5]} 23. fxg6 {[%clk 0:01:46.5]}
23... hxg6 {[%clk 0:01:40.4]} 24. a4 {[%clk 0:01:39.1]} 24... a6 {[%clk
0:01:35.4]} 25. axb5 {[%clk 0:01:38.5]} 25... axb5 {[%clk 0:01:36.3]} 26. b3
{[%clk 0:01:26]} 26... Bg5 {[%clk 0:01:33.5]} 27. bxc4 {[%clk 0:01:17.4]} 27...
bxc4 {[%clk 0:01:34.4]} 28. Kh1 {[%clk 0:00:34.4]} 28... c3 {[%clk 0:01:32.7]}
29. Rf3 {[%clk 0:00:22.4]} 29... Bd2 {[%clk 0:01:32.4]} 30. Rdf1 {[%clk
0:00:22.4]} 30... Re7 {[%clk 0:01:24.4]} 31. d5 {[%clk 0:00:15.9]} 31... Rde8
{[%clk 0:01:12.3]} 32. Rf6 {[%clk 0:00:15.2]} 32... Qe5 {[%clk 0:01:06.9]} 33.
Bxg6 {[%clk 0:00:14.9]} 33... Qxd5+ {[%clk 0:01:06.7]} 34. R1f3 {[%clk
0:00:12.4]} 34... Re1+ {[%clk 0:00:14.7]} 35. Kg2 {[%clk 0:00:12.4]} 35... R1e2+
{[%clk 0:00:15.2]} 36. Kh3 {[%clk 0:00:12.7]} 36... Qd7+ {[%clk 0:00:14.3]} 37.
Bf5 {[%clk 0:00:13.1]} 37... Qd4 {[%clk 0:00:14]} 38. Bg4 {[%clk 0:00:13.1]}
38... R8e7 {[%clk 0:00:09.9]} 39. Qf5 {[%clk 0:00:11.5]} 39... R2e5 {[%clk
0:00:06.5]} 40. Qc8+ {[%clk 0:00:11.2]} 40... Kg7 {[%clk 0:00:06.7]} 41. R6f5
{[%clk 0:00:05.2]} 41... Rxf5 {[%clk 0:00:06.8]} 42. Qxf5 {[%clk 0:00:06.1]}
42... Qe5 {[%clk 0:00:07]} 43. Qc2 {[%clk 0:00:06.1]} 43... Qg5 {[%clk
0:00:06.7]} 44. Rf5 {[%clk 0:00:06]} 44... Qh6+ {[%clk 0:00:06.1]} 45. Rh5
{[%clk 0:00:06.2]} 45... Qg6 {[%clk 0:00:06.7]} 46. Qb3 {[%clk 0:00:06.3]} 46...
c2 {[%clk 0:00:05.1]} 47. Qb2+ {[%clk 0:00:06.6]} 47... f6 {[%clk 0:00:04.5]}
48. Qb8 {[%clk 0:00:03.4]} 48... Qxh5+ {[%clk 0:00:05]} 49. Bxh5 {[%clk
0:00:03.3]} 49... c1=Q {[%clk 0:00:05.6]} 50. Qd8 {[%clk 0:00:02.5]} 50... Qc7
{[%clk 0:00:05.1]} 51. Qd3 {[%clk 0:00:01.8]} 51... Qd7+ {[%clk 0:00:05.1]} 0-1

[Event "*** Titled Tuesday Blitz"]
[Site "Chess.com"]
[Date "2021.02.16"]
[Round "11"]
[White "Grieve72"]
[Black "Zenzo"]
[Result "1-0"]
[WhiteElo "2496"]
[BlackElo "2600"]
[TimeControl "180+1"]
[EndTime "12:11:12 PST"]
[Termination "Grieve72 won by checkmate"]

1. e4 {[%clk 0:03:00.9]} 1... e5 {[%clk 0:02:59.6]} 2. Nf3 {[%clk 0:03:00.8]}
2... Nc6 {[%clk 0:03:00]} 3. Bc4 {[%clk 0:03:01.1]} 3... Bc5 {[%clk 0:02:59.8]}
4. O-O {[%clk 0:03:00.3]} 4... Nf6 {[%clk 0:02:59.6]} 5. d3 {[%clk 0:03:00.7]}
5... d6 {[%clk 0:02:59.7]} 6. a4 {[%clk 0:03:00.2]} 6... a6 {[%clk 0:03:00.1]}
7. c3 {[%clk 0:02:58]} 7... Ba7 {[%clk 0:03:00.7]} 8. a5 {[%clk 0:02:53.2]} 8...
h6 {[%clk 0:03:00.8]} 9. Nbd2 {[%clk 0:02:51.1]} 9... g5 {[%clk 0:03:00.9]} 10.
Qb3 {[%clk 0:02:24.9]} 10... Qe7 {[%clk 0:02:58.4]} 11. Re1 {[%clk 0:02:17]}
11... g4 {[%clk 0:02:57.2]} 12. Nh4 {[%clk 0:02:13]} 12... Nh5 {[%clk
0:02:45.2]} 13. g3 {[%clk 0:02:09.5]} 13... Ng7 {[%clk 0:02:27]} 14. Nf1 {[%clk
0:01:40.2]} 14... Nd8 {[%clk 0:02:25.3]} 15. Be3 {[%clk 0:01:27.8]} 15... Be6
{[%clk 0:02:21.6]} 16. Bxa7 {[%clk 0:01:25]} 16... Rxa7 {[%clk 0:02:22.5]} 17.
Ne3 {[%clk 0:01:25.5]} 17... O-O {[%clk 0:02:12]} 18. Bxe6 {[%clk 0:01:07.1]}
18... fxe6 {[%clk 0:02:10]} 19. Ng6 {[%clk 0:01:05]} 19... Qg5 {[%clk
0:02:07.5]} 20. Nxf8 {[%clk 0:01:05]} 20... Kxf8 {[%clk 0:02:08.4]} 21. f3
{[%clk 0:00:56.6]} 21... gxf3 {[%clk 0:02:03.8]} 22. Qd1 {[%clk 0:00:54.7]}
22... f2+ {[%clk 0:02:01.2]} 23. Kxf2 {[%clk 0:00:55]} 23... Ke7 {[%clk
0:02:00.9]} 24. Qg4 {[%clk 0:00:45.8]} 24... Nf7 {[%clk 0:01:57.2]} 25. h4
{[%clk 0:00:40]} 25... Qxg4 {[%clk 0:01:56.1]} 26. Nxg4 {[%clk 0:00:40.9]} 26...
h5 {[%clk 0:01:55.1]} 27. Ne3 {[%clk 0:00:39]} 27... Nh6 {[%clk 0:01:53.3]} 28.
Ke2 {[%clk 0:00:36.2]} 28... Ra8 {[%clk 0:01:51.3]} 29. Rf1 {[%clk 0:00:36.1]}
29... Rg8 {[%clk 0:01:51.4]} 30. Rf3 {[%clk 0:00:36.3]} 30... Ne8 {[%clk
0:01:49.8]} 31. Raf1 {[%clk 0:00:36.4]} 31... Rg6 {[%clk 0:01:50.3]} 32. b4
{[%clk 0:00:32.7]} 32... Nf6 {[%clk 0:01:46.7]} 33. c4 {[%clk 0:00:29.4]} 33...
Nd7 {[%clk 0:01:44.9]} 34. Rb1 {[%clk 0:00:21.6]} 34... c6 {[%clk 0:01:36.7]}
35. b5 {[%clk 0:00:21.8]} 35... cxb5 {[%clk 0:01:35]} 36. cxb5 {[%clk
0:00:22.7]} 36... Nc5 {[%clk 0:01:35.1]} 37. bxa6 {[%clk 0:00:19]} 37... bxa6
{[%clk 0:01:36]} 38. Rb6 {[%clk 0:00:18]} 38... Rg8 {[%clk 0:01:28.6]} 39. Nc4
{[%clk 0:00:18.1]} 39... Rd8 {[%clk 0:01:26.2]} 40. Rc6 {[%clk 0:00:09.2]} 40...
Ng4 {[%clk 0:01:15.4]} 41. Rc7+ {[%clk 0:00:08.9]} 41... Rd7 {[%clk 0:01:15.2]}
42. Rxd7+ {[%clk 0:00:09.2]} 42... Nxd7 {[%clk 0:01:15.9]} 43. Rf1 {[%clk
0:00:07.9]} 43... Nc5 {[%clk 0:01:14]} 44. Rb1 {[%clk 0:00:07.5]} 44... d5
{[%clk 0:01:14.4]} 45. exd5 {[%clk 0:00:04.1]} 45... exd5 {[%clk 0:01:15.3]} 46.
Ne3 {[%clk 0:00:04.7]} 46... Nf6 {[%clk 0:01:06.2]} 47. Rb6 {[%clk 0:00:04.8]}
47... e4 {[%clk 0:00:59]} 48. Nf5+ {[%clk 0:00:03.4]} 48... Kf7 {[%clk
0:00:59.5]} 49. dxe4 {[%clk 0:00:03.4]} 49... Nfxe4 {[%clk 0:00:59.2]} 50. Nd6+
{[%clk 0:00:02.7]} 50... Ke7 {[%clk 0:00:50.3]} 51. Nxe4 {[%clk 0:00:03.6]}
51... Nxe4 {[%clk 0:00:49.8]} 52. Kf3 {[%clk 0:00:04]} 52... Nc5 {[%clk
0:00:46.3]} 53. Rc6 {[%clk 0:00:04.2]} 53... Nb3 {[%clk 0:00:46.5]} 54. Rxa6
{[%clk 0:00:04.3]} 54... Kd7 {[%clk 0:00:47.1]} 55. Ke3 {[%clk 0:00:02.5]} 55...
Kc7 {[%clk 0:00:46.8]} 56. Ra7+ {[%clk 0:00:02.1]} 56... Kc6 {[%clk 0:00:46.8]}
57. Rh7 {[%clk 0:00:02.9]} 57... Nxa5 {[%clk 0:00:46.4]} 58. Rxh5 {[%clk
0:00:03.6]} 58... Kc5 {[%clk 0:00:46.3]} 59. Rg5 {[%clk 0:00:03.7]} 59... Nc4+
{[%clk 0:00:46.9]} 60. Ke2 {[%clk 0:00:03.4]} 60... Nd6 {[%clk 0:00:47.8]} 61.
h5 {[%clk 0:00:03.7]} 61... Ne4 {[%clk 0:00:48.7]} 62. Re5 {[%clk 0:00:03.8]}
62... Nxg3+ {[%clk 0:00:48.4]} 63. Kf3 {[%clk 0:00:03.4]} 63... Nf1 {[%clk
0:00:46.6]} 64. h6 {[%clk 0:00:03.2]} 64... Nd2+ {[%clk 0:00:46.3]} 65. Kf4
{[%clk 0:00:03.7]} 65... Nc4 {[%clk 0:00:45.4]} 66. h7 {[%clk 0:00:02.7]} 66...
Nxe5 {[%clk 0:00:44.7]} 67. Kxe5 {[%clk 0:00:03.6]} 67... d4 {[%clk 0:00:45.5]}
68. h8=Q {[%clk 0:00:04.4]} 68... Kc4 {[%clk 0:00:45.9]} 69. Qc8+ {[%clk
0:00:04]} 69... Kd3 {[%clk 0:00:46.3]} 70. Qd7 {[%clk 0:00:04.9]} 70... Ke2
{[%clk 0:00:46.5]} 71. Qxd4 {[%clk 0:00:05.8]} 71... Kf1 {[%clk 0:00:47.4]} 72.
Qd2 {[%clk 0:00:05.9]} 72... Kg1 {[%clk 0:00:47.7]} 73. Kf4 {[%clk 0:00:06.8]}
73... Kh1 {[%clk 0:00:48.6]} 74. Kg3 {[%clk 0:00:07.7]} 74... Kg1 {[%clk
0:00:49.5]} 75. Qe1# {[%clk 0:00:08.3]} 1-0